Workbook

Sheet May Sales
F2: Le Fromage Puant
F5: Importers of Fine Cheese Since 1964
F7: 2111 Westover Road
F8: Grand Rapids, MI 49525
A11: Sale ID | B11: Date | C11: Product # | D11: lbs Sold | E11: Profit/lb | F11: Profit
A12: 4020 | B12: 2012-05-01 | C12: 2300460 | D12: 45 | E12: =(VLOOKUP(C12,'[1]Product Info'!$A$11:$H$41,8))-(VLOOKUP(C12,'[1]Product Info'!$A$11:$H$41,7)) -> 3.08 | F12: =E12*D12 -> 138.6
A13: 4021 | B13: 2012-05-01 | C13: 2300547 | D13: 50 | E13: =(VLOOKUP(C13,'[1]Product Info'!$A$11:$H$41,8))-(VLOOKUP(C13,'[1]Product Info'!$A$11:$H$41,7)) -> 3.44 | F13: =E13*D13 -> 172
A14: 4022 | B14: 2012-05-02 | C14: 3100741 | D14: 70 | E14: =(VLOOKUP(C14,'[1]Product Info'!$A$11:$H$41,8))-(VLOOKUP(C14,'[1]Product Info'!$A$11:$H$41,7)) -> 3.33 | F14: 233.1
A15: 4023 | B15: 2012-05-03 | C15: 3100741 | D15: 75 | E15: =(VLOOKUP(C15,'[1]Product Info'!$A$11:$H$41,8))-(VLOOKUP(C15,'[1]Product Info'!$A$11:$H$41,7)) -> 3.33 | F15: 249.75
A16: 4024 | B16: 2012-05-04 | C16: 3300466 | D16: 85 | E16: =(VLOOKUP(C16,'[1]Product Info'!$A$11:$H$41,8))-(VLOOKUP(C16,'[1]Product Info'!$A$11:$H$41,7)) -> 2.39 | F16: 203.15
A17: 4025 | B17: 2012-05-07 | C17: 3300466 | D17: 100 | E17: =(VLOOKUP(C17,'[1]Product Info'!$A$11:$H$41,8))-(VLOOKUP(C17,'[1]Product Info'!$A$11:$H$41,7)) -> 2.39 | F17: 239
A18: 4026 | B18: 2012-05-08 | C18: 2300160 | D18: 50 | E18: =(VLOOKUP(C18,'[1]Product Info'!$A$11:$H$41,8))-(VLOOKUP(C18,'[1]Product Info'!$A$11:$H$41,7)) -> 3.17 | F18: 158.5
A19: 4027 | B19: 2012-05-08 | C19: 2300144 | D19: 160 | E19: =(VLOOKUP(C19,'[1]Product Info'!$A$11:$H$41,8))-(VLOOKUP(C19,'[1]Product Info'!$A$11:$H$41,7)) -> 4.04 | F19: 646.4
A20: 4028 | B20: 2012-05-08 | C20: 2100790 | D20: 125 | E20: =(VLOOKUP(C20,'[1]Product Info'!$A$11:$H$41,8))-(VLOOKUP(C20,'[1]Product Info'!$A$11:$H$41,7)) -> 3.09 | F20: 386.25
A21: 4029 | B21: 2012-05-09 | C21: 3100750 | D21: 60 | E21: =(VLOOKUP(C21,'[1]Product Info'!$A$11:$H$41,8))-(VLOOKUP(C21,'[1]Product Info'!$A$11:$H$41,7)) -> 2.92 | F21: 175.2
A22: 4030 | B22: 2012-05-10 | C22: 3100750 | D22: 45 | E22: =(VLOOKUP(C22,'[1]Product Info'!$A$11:$H$41,8))-(VLOOKUP(C22,'[1]Product Info'!$A$11:$H$41,7)) -> 2.92 | F22: 131.4
A23: 4031 | C23: 2100446 | D23: 90 | E23: =(VLOOKUP(C23,'[1]Product Info'!$A$11:$H$41,8))-(VLOOKUP(C23,'[1]Product Info'!$A$11:$H$41,7)) -> 3.39 | F23: 305.1
A24: 4032 | C24: 2100714 | D24: 190 | E24: =(VLOOKUP(C24,'[1]Product Info'!$A$11:$H$41,8))-(VLOOKUP(C24,'[1]Product Info'!$A$11:$H$41,7)) -> 2.86 | F24: 543.4
A25: 4033 | C25: 3100874 | D25: 55 | E25: =(VLOOKUP(C25,'[1]Product Info'!$A$11:$H$41,8))-(VLOOKUP(C25,'[1]Product Info'!$A$11:$H$41,7)) -> 4.81 | F25: 264.55
A26: 4034 | C26: 3300211 | D26: 125 | E26: =(VLOOKUP(C26,'[1]Product Info'!$A$11:$H$41,8))-(VLOOKUP(C26,'[1]Product Info'!$A$11:$H$41,7)) -> 2.79 | F26: 348.75
A27: 4035 | C27: 3100874 | D27: 60 | E27: =(VLOOKUP(C27,'[1]Product Info'!$A$11:$H$41,8))-(VLOOKUP(C27,'[1]Product Info'!$A$11:$H$41,7)) -> 4.81 | F27: 288.6
A28: 4036 | C28: 2100423 | D28: 40 | E28: =(VLOOKUP(C28,'[1]Product Info'!$A$11:$H$41,8))-(VLOOKUP(C28,'[1]Product Info'!$A$11:$H$41,7)) -> 2.73 | F28: 109.2
A29: 4037 | C29: 2100423 | D29: 80 | E29: =(VLOOKUP(C29,'[1]Product Info'!$A$11:$H$41,8))-(VLOOKUP(C29,'[1]Product Info'!$A$11:$H$41,7)) -> 2.73 | F29: 218.4
A30: 4038 | C30: 3100641 | D30: 85 | E30: =(VLOOKUP(C30,'[1]Product Info'!$A$11:$H$41,8))-(VLOOKUP(C30,'[1]Product Info'!$A$11:$H$41,7)) -> 2.88 | F30: 244.8
A31: 4039 | C31: 3100646 | D31: 40 | E31: =(VLOOKUP(C31,'[1]Product Info'!$A$11:$H$41,8))-(VLOOKUP(C31,'[1]Product Info'!$A$11:$H$41,7)) -> 2.53 | F31: 101.2
A32: 4040 | C32: 3100107 | D32: 60 | E32: =(VLOOKUP(C32,'[1]Product Info'!$A$11:$H$41,8))-(VLOOKUP(C32,'[1]Product Info'!$A$11:$H$41,7)) -> 3.04 | F32: 182.4
A33: 4041 | C33: 2100308 | D33: 75 | E33: =(VLOOKUP(C33,'[1]Product Info'!$A$11:$H$41,8))-(VLOOKUP(C33,'[1]Product Info'!$A$11:$H$41,7)) -> 3.05 | F33: 228.75
A34: 4042 | C34: 2100308 | D34: 125 | E34: =(VLOOKUP(C34,'[1]Product Info'!$A$11:$H$41,8))-(VLOOKUP(C34,'[1]Product Info'!$A$11:$H$41,7)) -> 3.05 | F34: 381.25
A35: 4043 | C35: 2100200 | D35: 110 | E35: =(VLOOKUP(C35,'[1]Product Info'!$A$11:$H$41,8))-(VLOOKUP(C35,'[1]Product Info'!$A$11:$H$41,7)) -> 2.51 | F35: 276.1
A36: 4044 | C36: 2100200 | D36: 90 | E36: =(VLOOKUP(C36,'[1]Product Info'!$A$11:$H$41,8))-(VLOOKUP(C36,'[1]Product Info'!$A$11:$H$41,7)) -> 2.51 | F36: 225.9
A37: 4045 | C37: 3100787 | D37: 35 | E37: =(VLOOKUP(C37,'[1]Product Info'!$A$11:$H$41,8))-(VLOOKUP(C37,'[1]Product Info'!$A$11:$H$41,7)) -> 4.39 | F37: 153.65
A38: 4046 | C38: 2100425 | D38: 75 | E38: =(VLOOKUP(C38,'[1]Product Info'!$A$11:$H$41,8))-(VLOOKUP(C38,'[1]Product Info'!$A$11:$H$41,7)) -> 3.93 | F38: 294.75
A39: 4047 | C39: 2100425 | D39: 75 | E39: =(VLOOKUP(C39,'[1]Product Info'!$A$11:$H$41,8))-(VLOOKUP(C39,'[1]Product Info'!$A$11:$H$41,7)) -> 3.93 | F39: 294.75
A40: 4048 | C40: 3200874 | D40: 65 | E40: =(VLOOKUP(C40,'[1]Product Info'!$A$11:$H$41,8))-(VLOOKUP(C40,'[1]Product Info'!$A$11:$H$41,7)) -> 3.32 | F40: 215.8
A41: 4049 | C41: 3100761 | D41: 45 | E41: =(VLOOKUP(C41,'[1]Product Info'!$A$11:$H$41,8))-(VLOOKUP(C41,'[1]Product Info'!$A$11:$H$41,7)) -> 4.02 | F41: 180.9
A42: 4050 | C42: 3300890 | D42: 120 | E42: =(VLOOKUP(C42,'[1]Product Info'!$A$11:$H$41,8))-(VLOOKUP(C42,'[1]Product Info'!$A$11:$H$41,7)) -> 4.72 | F42: 566.4
A43: 4051 | C43: 4200141 | D43: 125 | E43: =(VLOOKUP(C43,'[1]Product Info'!$A$11:$H$41,8))-(VLOOKUP(C43,'[1]Product Info'!$A$11:$H$41,7)) -> 3.4 | F43: 425
A44: 4052 | C44: 2300874 | D44: 105 | E44: =(VLOOKUP(C44,'[1]Product Info'!$A$11:$H$41,8))-(VLOOKUP(C44,'[1]Product Info'!$A$11:$H$41,7)) -> 3.84 | F44: 403.2
A45: 4053 | C45: 2100212 | D45: 110 | E45: =(VLOOKUP(C45,'[1]Product Info'!$A$11:$H$41,8))-(VLOOKUP(C45,'[1]Product Info'!$A$11:$H$41,7)) -> 4.45 | F45: 489.5
A46: 4054 | C46: 3300439 | D46: 70 | E46: =(VLOOKUP(C46,'[1]Product Info'!$A$11:$H$41,8))-(VLOOKUP(C46,'[1]Product Info'!$A$11:$H$41,7)) -> 4.35 | F46: 304.5
A47: 4055 | C47: 3300439 | D47: 75 | E47: =(VLOOKUP(C47,'[1]Product Info'!$A$11:$H$41,8))-(VLOOKUP(C47,'[1]Product Info'!$A$11:$H$41,7)) -> 4.35 | F47: 326.25
A48: 4056 | C48: 4200135 | D48: 80 | E48: =(VLOOKUP(C48,'[1]Product Info'!$A$11:$H$41,8))-(VLOOKUP(C48,'[1]Product Info'!$A$11:$H$41,7)) -> 2.78 | F48: 222.4
A49: 4057 | C49: 3100763 | D49: 85 | E49: =(VLOOKUP(C49,'[1]Product Info'!$A$11:$H$41,8))-(VLOOKUP(C49,'[1]Product Info'!$A$11:$H$41,7)) -> 4.25 | F49: 361.25
A50: 4058 | C50: 4300564 | D50: 95 | E50: =(VLOOKUP(C50,'[1]Product Info'!$A$11:$H$41,8))-(VLOOKUP(C50,'[1]Product Info'!$A$11:$H$41,7)) -> 4.81 | F50: 456.95
A51: 4059 | C51: 2300874 | D51: 90 | E51: =(VLOOKUP(C51,'[1]Product Info'!$A$11:$H$41,8))-(VLOOKUP(C51,'[1]Product Info'!$A$11:$H$41,7)) -> 3.84 | F51: 345.6
A52: 4060 | C52: 2100200 | D52: 120 | E52: =(VLOOKUP(C52,'[1]Product Info'!$A$11:$H$41,8))-(VLOOKUP(C52,'[1]Product Info'!$A$11:$H$41,7)) -> 2.51 | F52: 301.2
A53: 4061 | C53: 2100200 | D53: 160 | E53: =(VLOOKUP(C53,'[1]Product Info'!$A$11:$H$41,8))-(VLOOKUP(C53,'[1]Product Info'!$A$11:$H$41,7)) -> 2.51 | F53: 401.6
A54: 4062 | C54: 2100212 | D54: 120 | E54: =(VLOOKUP(C54,'[1]Product Info'!$A$11:$H$41,8))-(VLOOKUP(C54,'[1]Product Info'!$A$11:$H$41,7)) -> 4.45 | F54: 534
A55: 4063 | C55: 2100308 | D55: 135 | E55: =(VLOOKUP(C55,'[1]Product Info'!$A$11:$H$41,8))-(VLOOKUP(C55,'[1]Product Info'!$A$11:$H$41,7)) -> 3.05 | F55: 411.75
A56: 4064 | C56: 2100308 | D56: 80 | E56: =(VLOOKUP(C56,'[1]Product Info'!$A$11:$H$41,8))-(VLOOKUP(C56,'[1]Product Info'!$A$11:$H$41,7)) -> 3.05 | F56: 244
A57: 4065 | C57: 2100423 | D57: 45 | E57: =(VLOOKUP(C57,'[1]Product Info'!$A$11:$H$41,8))-(VLOOKUP(C57,'[1]Product Info'!$A$11:$H$41,7)) -> 2.73 | F57: 122.85
A58: 4066 | C58: 2100425 | D58: 50 | E58: =(VLOOKUP(C58,'[1]Product Info'!$A$11:$H$41,8))-(VLOOKUP(C58,'[1]Product Info'!$A$11:$H$41,7)) -> 3.93 | F58: 196.5
A59: 4067 | C59: 2100425 | D59: 70 | E59: =(VLOOKUP(C59,'[1]Product Info'!$A$11:$H$41,8))-(VLOOKUP(C59,'[1]Product Info'!$A$11:$H$41,7)) -> 3.93 | F59: 275.1
A60: 4068 | C60: 3100107 | D60: 170 | E60: =(VLOOKUP(C60,'[1]Product Info'!$A$11:$H$41,8))-(VLOOKUP(C60,'[1]Product Info'!$A$11:$H$41,7)) -> 3.04 | F60: 516.8
A61: 4069 | C61: 3100641 | D61: 65 | E61: =(VLOOKUP(C61,'[1]Product Info'!$A$11:$H$41,8))-(VLOOKUP(C61,'[1]Product Info'!$A$11:$H$41,7)) -> 2.88 | F61: 187.2
A62: 4070 | C62: 3100646 | D62: 140 | E62: =(VLOOKUP(C62,'[1]Product Info'!$A$11:$H$41,8))-(VLOOKUP(C62,'[1]Product Info'!$A$11:$H$41,7)) -> 2.53 | F62: 354.2
A63: 4071 | C63: 3100761 | D63: 120 | E63: =(VLOOKUP(C63,'[1]Product Info'!$A$11:$H$41,8))-(VLOOKUP(C63,'[1]Product Info'!$A$11:$H$41,7)) -> 4.02 | F63: 482.4
A64: 4072 | C64: 3100787 | D64: 110 | E64: =(VLOOKUP(C64,'[1]Product Info'!$A$11:$H$41,8))-(VLOOKUP(C64,'[1]Product Info'!$A$11:$H$41,7)) -> 4.39 | F64: 482.9
A65: 4073 | C65: 3300890 | D65: 115 | E65: =(VLOOKUP(C65,'[1]Product Info'!$A$11:$H$41,8))-(VLOOKUP(C65,'[1]Product Info'!$A$11:$H$41,7)) -> 4.72 | F65: 542.8
A66: 4074 | C66: 3300439 | D66: 110 | E66: =(VLOOKUP(C66,'[1]Product Info'!$A$11:$H$41,8))-(VLOOKUP(C66,'[1]Product Info'!$A$11:$H$41,7)) -> 4.35 | F66: 478.5
A67: 4075 | C67: 3300439 | D67: 55 | E67: =(VLOOKUP(C67,'[1]Product Info'!$A$11:$H$41,8))-(VLOOKUP(C67,'[1]Product Info'!$A$11:$H$41,7)) -> 4.35 | F67: 239.25
D68: Total: | F68: =SUM(F12:F67) -> 17263.7

Sheet Sheet2

Sheet Sheet3
